bitfinex/quotes_BTCUSD_20260126
["timestamp","ask_amount","ask_price","bid_price","bid_amount"]
[1769413258359,0.06839478,87992.0,87982.0,0.00013994]
[1769413258579,0.50671561,87991.0,87982.0,0.00013994]
[1769413259763,0.50671561,87999.0,87982.0,0.00013994]
[1769413259963,0.57511039,87997.0,87982.0,0.0115059]
[1769413260167,0.57511039,87997.0,87982.0,0.00013994]
[1769413260707,0.06839478,87997.0,87982.0,0.02970006]
[1769413260889,0.50671561,88002.0,87987.0,0.01136531]
[1769413261052,0.50671561,88009.0,87993.0,0.01136454]
[1769413261251,0.57511039,88009.0,87990.0,0.54068371]
[1769413261454,0.57511039,88009.0,87990.0,0.46566545]
[1769413261659,0.11336698,88008.0,87989.0,0.88612191]
[1769413261858,0.51114545,88010.0,87989.0,0.88612191]
[1769413261859,0.50671561,88007.0,87990.0,0.01705742]
[1769413262095,0.06839478,88006.0,87990.0,0.01705742]
[1769413262236,0.03637707,88004.0,87990.0,0.01705742]
[1769413262437,0.57511039,88003.0,87990.0,0.01705742]
[1769413262637,0.57511039,88003.0,87986.0,0.01819419]
[1769413263253,0.57511039,88003.0,87985.0,0.02956053]
[1769413263450,0.57511039,88003.0,87985.0,0.01819496]
[1769413264239,0.57511039,88003.0,87987.0,0.01136531]
[1769413264444,0.06839478,88010.0,87992.0,0.01136466]
[1769413264646,0.11343027,88009.0,87992.0,0.91211977]
[1769413264841,0.11343027,88008.0,87992.0,0.8950618]
[1769413265069,0.11343027,88007.0,87992.0,0.88369714]
[1769413265270,0.53406023,88010.0,87992.0,0.88369714]
[1769413265271,0.11343027,88006.0,87992.0,0.88369714]
[1769413265470,0.53406023,88010.0,87992.0,0.07087686]
[1769413265471,0.03637707,88004.0,87992.0,0.07087686]
[1769413265673,0.03637707,88004.0,87986.0,0.06819262]
[1769413265674,0.46566545,88002.0,87986.0,0.07087686]
[1769413266093,0.46566545,88002.0,87987.0,0.01819635]
[1769413266288,0.50671561,88003.0,87986.0,0.07087686]
[1769413267471,0.46566545,88000.0,87986.0,0.07087686]
[1769413268033,0.97238106,88000.0,87986.0,0.07087686]
[1769413269830,0.97238106,88000.0,87982.0,0.0115059]
[1769413269831,0.50671561,87999.0,87982.0,0.00013994]
[1769413269966,0.50671561,87997.0,87983.0,0.01136583]
[1769413270170,0.50671561,88009.0,87986.0,0.80979143]
[1769413270555,0.03637707,88004.0,87988.0,0.86930285]
[1769413270702,0.1136125,88003.0,87988.0,0.07079926]
[1769413270927,0.1136125,88002.0,87988.0,0.07079926]
[1769413271122,0.50671561,88003.0,87983.0,0.80979182]
[1769413271123,0.1136125,88001.0,87983.0,0.80979182]
[1769413271324,0.03637707,88004.0,87982.0,0.00013994]
[1769413271325,0.50671561,87996.0,87982.0,0.00013994]
[1769413271527,0.57460797,87994.0,87982.0,0.00013994]
[1769413272515,0.43767412,87990.0,87982.0,0.00013994]
[1769413272699,0.46566545,87992.0,87976.0,0.0002237]
[1769413272700,0.06789236,87987.0,87976.0,0.0002237]
[1769413272904,0.82651268,87986.0,87976.0,0.0002237]
[1769413273235,0.75862032,87986.0,87976.0,0.0002237]
[1769413273433,0.06789236,87983.0,87976.0,0.0002237]
[1769413273618,0.75862032,87982.0,87976.0,0.0002237]
[1769413274714,0.06789236,87979.0,87962.0,0.07110056]
[1769413274917,0.75839886,87978.0,87963.0,0.01136841]
[1769413275136,0.75839886,87978.0,87962.0,0.0824691]
[1769413275418,0.75839886,87978.0,87963.0,0.01136841]
[1769413275639,0.75839886,87978.0,87963.0,0.08224527]
[1769413275841,0.75839886,87978.0,87963.0,0.07087686]
[1769413276788,0.75839886,87972.0,87962.0,0.0002237]
[1769413278235,0.46566545,87972.0,87962.0,0.0002237]
[1769413278855,0.46566545,87980.0,87962.0,0.0002237]
[1769413279070,0.01136544,87986.0,87962.0,0.0002237]
[1769413279071,0.07256429,87986.0,87967.0,0.7713621]
[1769413279286,0.46566545,87980.0,87967.0,0.75999421]
[1769413279714,0.46566545,87980.0,87967.0,0.7713621]
[1769413279936,0.07256429,87986.0,87970.0,0.47703296]
[1769413280153,0.11349278,87985.0,87973.0,0.0712804]
[1769413280332,0.00013975,87987.0,87978.0,0.75999421]
[1769413280539,0.00013975,87987.0,87978.0,0.83127461]
[1769413280969,0.00013975,87987.0,87979.0,0.02184588]
[1769413281830,0.00013975,87987.0,87972.0,0.83127461]
[1769413282038,0.46566545,87982.0,87972.0,0.83127461]
[1769413282312,0.00013975,87987.0,87972.0,0.84264186]
[1769413282499,0.00013975,87987.0,87973.0,0.01136712]
[1769413282862,0.00013975,87987.0,87973.0,0.83127461]
[1769413283092,0.00013975,87987.0,87974.0,0.0712804]
[1769413283855,0.46566545,87984.0,87967.0,0.0712804]
[1769413284204,0.46566545,87980.0,87968.0,0.01136777]
[1769413284504,0.46566545,87980.0,87967.0,0.08264829]
[1769413284830,0.46348548,87980.0,87967.0,0.08273659]
[1769413285023,0.46348548,87980.0,87967.0,0.0713687]
[1769413285171,0.46348548,87980.0,87967.0,0.08273659]
[1769413285364,0.46348548,87980.0,87969.0,0.01136764]
[1769413285572,0.46348548,87980.0,87967.0,0.83136291]
[1769413285766,0.46348548,87980.0,87971.0,0.01136738]
[1769413285968,0.46348548,87980.0,87972.0,0.01136725]
[1769413286390,0.46348548,87980.0,87968.0,0.01136777]
[1769413286825,0.46348548,87980.0,87968.0,0.01145607]
[1769413287239,0.46348548,87980.0,87968.0,8.83e-05]
[1769413288001,0.46348548,87980.0,87968.0,0.01145607]
[1769413288213,0.46348548,87980.0,87968.0,8.83e-05]
[1769413288414,0.46316962,87980.0,87968.0,8.83e-05]
[1769413288618,0.46316962,87980.0,87968.0,0.03330409]
[1769413288838,0.46316962,87980.0,87969.0,0.01136764]
[1769413289052,0.46316962,87980.0,87970.0,0.02184752]
[1769413289281,0.46316962,87980.0,87971.0,0.02184727]
[1769413289427,0.46316962,87980.0,87969.0,0.02184727]
[1769413289828,0.46316962,87980.0,87969.0,0.02193557]
[1769413290066,0.46316962,87980.0,87969.0,8.83e-05]
[1769413290660,0.46316962,87980.0,87970.0,0.01136751]
[1769413290889,0.00013975,87987.0,87971.0,0.10538254]
[1769413291041,0.03637707,87985.0,87971.0,0.86537675]
[1769413291236,0.03637707,87985.0,87971.0,0.83127461]
[1769413291474,0.00013975,87987.0,87971.0,0.83127461]
[1769413291880,0.46566545,87981.0,87971.0,0.84273029]
[1769413292239,0.46566545,87981.0,87971.0,0.83136291]
[1769413293115,0.46566545,87981.0,87972.0,0.0227345]
[1769413293450,0.46566545,87981.0,87971.0,8.83e-05]
[1769413295043,0.46566545,87981.0,87972.0,0.01136725]
[1769413295230,0.46566545,87981.0,87973.0,0.02189101]
[1769413295450,0.46566545,87981.0,87974.0,0.02189069]
[1769413295654,0.46566545,87984.0,87972.0,0.0227345]
[1769413295953,0.46566545,87984.0,87972.0,0.0228228]
[1769413297093,0.46566545,87984.0,87973.0,0.02273424]
[1769413297386,0.46566545,87984.0,87974.0,0.02273398]
[1769413297522,0.46566545,87984.0,87972.0,0.0228228]
[1769413297725,0.46566545,87984.0,87972.0,8.83e-05]
[1769413298361,0.46566545,87984.0,87972.0,0.0228228]
[1769413298725,0.46566545,87984.0,87972.0,8.83e-05]
[1769413299142,0.11358095,87983.0,87972.0,8.83e-05]
[1769413299402,0.46566545,87984.0,87972.0,0.0228228]
[1769413299550,0.11358095,87983.0,87972.0,0.0228228]
[1769413299753,0.46566545,87984.0,87972.0,0.7535746]
[1769413299976,0.11358095,87983.0,87972.0,0.7308401]
[1769413300158,0.11361204,87982.0,87972.0,0.7308401]
[1769413300355,0.46566545,87984.0,87972.0,0.7308401]
[1769413300356,0.46566545,87984.0,87972.0,8.83e-05]
[1769413300562,0.87201096,87983.0,87972.0,8.83e-05]
[1769413300764,0.1136121,87982.0,87972.0,8.83e-05]
[1769413300970,0.46566545,87984.0,87972.0,8.83e-05]
[1769413301183,0.11361204,87983.0,87972.0,0.02193536]
[1769413301392,0.11361204,87982.0,87972.0,0.02193536]
[1769413301560,0.11361204,87981.0,87972.0,0.02193536]
[1769413301761,0.46566545,87984.0,87972.0,0.02193536]
[1769413301961,0.11365591,87983.0,87972.0,0.02193536]
[1769413302335,0.11365591,87982.0,87972.0,0.02193536]
[1769413302536,0.11365591,87981.0,87972.0,0.02193536]
[1769413302739,0.11365591,87980.0,87972.0,0.02193536]
[1769413302917,0.46566545,87984.0,87972.0,0.02193536]
[1769413303118,0.11370466,87983.0,87972.0,0.02193536]
[1769413303276,0.11370466,87982.0,87972.0,8.83e-05]
[1769413303484,0.11370466,87981.0,87972.0,8.83e-05]
[1769413303670,0.11370466,87980.0,87972.0,8.83e-05]
[1769413303866,0.46566545,87984.0,87972.0,8.83e-05]
[1769413304102,0.11371928,87983.0,87972.0,8.83e-05]
[1769413304314,0.11371928,87982.0,87972.0,8.83e-05]
[1769413304572,0.11371928,87981.0,87972.0,8.83e-05]
[1769413304768,0.11371928,87980.0,87972.0,8.83e-05]
[1769413304972,0.46566545,87984.0,87972.0,8.83e-05]
[1769413305173,0.11372375,87983.0,87972.0,8.83e-05]
[1769413305490,0.11372375,87982.0,87972.0,8.83e-05]
[1769413305779,0.11372375,87981.0,87972.0,8.83e-05]
[1769413305963,0.11372375,87980.0,87972.0,8.83e-05]
[1769413306164,0.46566545,87984.0,87972.0,8.83e-05]
[1769413306459,0.11372409,87983.0,87972.0,8.83e-05]
[1769413306636,0.11372409,87982.0,87972.0,8.83e-05]
[1769413306842,0.11372409,87981.0,87972.0,8.83e-05]
[1769413307075,0.11372409,87980.0,87972.0,8.83e-05]
[1769413307270,0.46566545,87982.0,87972.0,8.83e-05]
[1769413309609,0.00013975,87987.0,87972.0,8.83e-05]
[1769413309808,0.00013975,87987.0,87979.0,0.7307518]
[1769413310013,0.46566545,87990.0,87982.0,0.06741693]
[1769413310378,0.46566545,87990.0,87980.0,0.01136621]
[1769413310379,5.827e-05,87990.0,87985.0,0.7307518]
[1769413310542,5.827e-05,87990.0,87987.0,0.7307518]
[1769413310766,5.827e-05,87990.0,87986.0,0.06741693]
[1769413312379,5.827e-05,87990.0,87981.0,0.7307518]
[1769413316016,5.827e-05,87990.0,87983.0,0.7307518]
[1769413317156,5.827e-05,87990.0,87982.0,0.06741693]
[1769413318357,0.47487106,87990.0,87974.0,0.06741693]
[1769413318555,0.46566545,87986.0,87974.0,0.06741693]
[1769413321657,0.46577721,87986.0,87974.0,0.06741693]
[1769413324934,0.11369523,87985.0,87974.0,0.06741693]
[1769413325277,0.46577721,87986.0,87974.0,0.06741693]
[1769413325483,0.11369523,87985.0,87974.0,0.06741693]
[1769413325658,0.46577721,87986.0,87974.0,0.06741693]
[1769413325859,0.11369523,87985.0,87974.0,0.06741693]
[1769413326066,0.46577721,87986.0,87974.0,0.06741693]
[1769413326248,0.11369492,87985.0,87974.0,0.06741693]
[1769413326475,0.26351939,87986.0,87974.0,0.06741693]
[1769413327281,1.00652783,87990.0,87974.0,0.06741693]
[1769413327482,0.1136958,87989.0,87974.0,0.06741693]
[1769413327718,0.55213152,87988.0,87974.0,0.06741693]
[1769413328059,0.43843572,87988.0,87974.0,0.06741693]
[1769413330064,0.46577721,87986.0,87974.0,0.06741693]
[1769413330263,0.46577721,87986.0,87970.0,0.7307518]
[1769413331092,0.46577721,87986.0,87965.0,0.06820876]
[1769413331093,0.06296042,87984.0,87963.0,0.80610322]
[1769413331296,0.77324781,87983.0,87965.0,0.01136815]
[1769413331612,0.77324781,87983.0,87966.0,0.01136802]
[1769413332492,0.77324781,87983.0,87968.0,0.01136777]
[1769413332705,0.77324781,87983.0,87967.0,0.07796052]
[1769413332947,0.77324781,87983.0,87968.0,0.01136777]
[1769413333305,0.77324781,87983.0,87967.0,0.87269533]
[1769413334406,0.77324781,87983.0,87968.0,0.01136777]
[1769413335009,0.06296042,87984.0,87968.0,0.01136777]
[1769413335207,0.06296042,87984.0,87967.0,0.87269533]
[1769413335387,0.06296042,87984.0,87967.0,0.86132744]
[1769413335590,0.77324781,87983.0,87967.0,0.86132744]
[1769413335994,0.77324781,87983.0,87963.0,0.01136841]
[1769413336200,0.46577721,87973.0,87962.0,0.01159014]
[1769413336722,0.46577721,87980.0,87964.0,0.01136828]
[1769413336920,0.46577721,87980.0,87966.0,0.01136802]
[1769413337067,0.46577721,87980.0,87966.0,0.86637526]
[1769413337424,0.46577721,87980.0,87967.0,0.08100756]
[1769413337619,0.46577721,87980.0,87967.0,0.85500724]
[1769413338445,0.46577721,87980.0,87968.0,0.02273554]
[1769413339082,0.46577721,87980.0,87967.0,0.85500724]
[1769413339704,0.46577721,87980.0,87946.0,0.08101028]
[1769413339705,0.76132846,87966.0,87946.0,0.08101028]
[1769413339993,0.46577721,87960.0,87948.0,0.01137035]
[1769413340335,0.46577721,87960.0,87947.0,0.01137048]
[1769413340541,0.76132846,87966.0,87946.0,0.08101028]
[1769413340853,0.46577721,87960.0,87946.0,0.08101028]
[1769413341261,0.46583545,87960.0,87947.0,0.01137048]
[1769413341453,0.46583545,87960.0,87946.0,0.08101028]
[1769413342064,0.46583545,87960.0,87947.0,0.01137048]
[1769413342260,5.824e-05,87960.0,87951.0,0.06963967]
[1769413342487,5.824e-05,87960.0,87952.0,0.85500724]
[1769413342661,5.824e-05,87960.0,87952.0,0.92322575]
[1769413343005,5.824e-05,87960.0,87958.0,0.06963967]
[1769413343166,0.03637707,87969.0,87959.0,0.78536757]
[1769413343352,0.11353217,87968.0,87959.0,0.78583421]
[1769413343553,0.11353217,87967.0,87959.0,0.85547388]
[1769413343863,0.46577721,87970.0,87959.0,0.85547388]
[1769413344100,0.11353129,87969.0,87959.0,0.85547388]
[1769413344247,0.11353129,87968.0,87959.0,0.85547388]
[1769413344453,0.11353129,87967.0,87959.0,0.00046664]
[1769413344653,0.46577721,87970.0,87959.0,0.00046664]
[1769413344853,0.11351241,87969.0,87959.0,0.00046664]
[1769413345054,0.11351241,87968.0,87959.0,0.00046664]
[1769413345301,0.11351241,87967.0,87959.0,0.00060224]
[1769413345508,0.76132846,87968.0,87959.0,0.00060224]
[1769413345687,0.11349587,87967.0,87959.0,0.00060224]
[1769413346013,0.76132846,87968.0,87959.0,0.00060224]
[1769413348305,0.76132846,87968.0,87954.0,0.06963967]
[1769413348477,0.76132846,87968.0,87954.0,0.00013975]
[1769413348679,0.46577721,87964.0,87954.0,0.00013975]
[1769413349485,0.46577721,87964.0,87950.0,0.00017]
[1769413349693,0.01136725,87972.0,87950.0,0.00022824]
[1769413349694,0.76132846,87958.0,87950.0,0.00022824]
[1769413349900,0.06427402,87957.0,87940.0,0.00017]
[1769413350098,0.32938322,87956.0,87944.0,0.01137087]
[1769413350353,0.32938322,87956.0,87945.0,0.01137074]
[1769413351512,0.32938322,87956.0,87941.0,0.01162066]
[1769413351717,0.39365724,87956.0,87941.0,0.02299192]
[1769413352166,0.39365724,87956.0,87942.0,0.01137113]
[1769413352302,6.891e-05,87957.0,87943.0,0.01162039]
[1769413353825,6.891e-05,87957.0,87944.0,0.0116206]
[1769413354030,6.891e-05,87957.0,87942.0,0.01162061]
[1769413356056,6.891e-05,87957.0,87942.0,0.02299174]
[1769413356678,6.891e-05,87957.0,87942.0,0.01162061]
[1769413357041,6.891e-05,87957.0,87943.0,0.011371]
[1769413357242,6.891e-05,87957.0,87944.0,0.01162034]
[1769413357454,6.891e-05,87957.0,87944.0,0.02274174]
[1769413357657,6.891e-05,87957.0,87943.0,0.022742]
[1769413359178,6.891e-05,87957.0,87944.0,0.02274174]
[1769413359480,6.891e-05,87957.0,87940.0,0.06980967]
[1769413359481,0.32945213,87957.0,87942.0,0.02274209]
[1769413359680,0.1133518,87956.0,87941.0,0.02274252]
[1769413359900,0.39367983,87957.0,87941.0,0.02274252]
[1769413360107,0.44273502,87956.0,87941.0,0.02274252]
[1769413360255,0.1133518,87955.0,87941.0,0.02274252]
[1769413361437,0.1133518,87955.0,87943.0,0.011371]
[1769413361631,0.1133518,87955.0,87944.0,0.01137087]
[1769413361850,0.1133518,87955.0,87944.0,0.03411261]
[1769413362043,6.891e-05,87957.0,87944.0,0.03411261]
[1769413362250,0.11337992,87956.0,87944.0,0.02274174]
[1769413362455,0.11337992,87955.0,87944.0,0.02274174]
[1769413362682,6.891e-05,87957.0,87944.0,0.02274174]
[1769413362853,0.11338183,87956.0,87944.0,0.02274174]
[1769413363065,0.44276505,87955.0,87944.0,0.02274174]
[1769413363232,0.57915904,87954.0,87942.0,0.02274174]
[1769413363434,0.46577721,87952.0,87940.0,0.00017]
[1769413364285,0.79516043,87952.0,87940.0,0.00017]
[1769413365157,0.03637707,87948.0,87940.0,0.00017]
[1769413365606,0.1134368,87947.0,87940.0,0.00017]
[1769413365757,0.03637707,87948.0,87940.0,0.00017]
[1769413366117,0.11343684,87947.0,87940.0,0.00017]
[1769413366327,0.03637707,87948.0,87940.0,0.00017]
[1769413366527,0.11345461,87947.0,87940.0,0.00017]
[1769413366724,0.03637707,87948.0,87940.0,0.00017]
[1769413366927,0.11345452,87947.0,87940.0,0.00017]
[1769413367065,0.11345452,87946.0,87940.0,0.00017]
[1769413367266,0.03637707,87948.0,87940.0,0.00017]
[1769413367471,0.11347583,87947.0,87940.0,0.00017]
[1769413367675,0.11347583,87946.0,87930.0,0.00017]
[1769413367914,0.03637707,87948.0,87930.0,0.00017]
[1769413367915,0.46577721,87940.0,87930.0,0.00017]
[1769413373873,0.46577721,87950.0,87932.0,0.01137242]
[1769413374074,0.03637707,87946.0,87933.0,0.01137229]
[1769413374287,0.11351398,87945.0,87934.0,0.85301689]
[1769413374486,0.11351398,87944.0,87934.0,0.85301689]
[1769413374691,0.11351398,87943.0,87934.0,0.85301689]
[1769413374899,0.11351398,87942.0,87935.0,0.01137203]
[1769413375099,0.11351398,87941.0,87934.0,0.86438905]
[1769413375301,0.79499213,87950.0,87934.0,0.86438905]
[1769413375503,0.03637707,87948.0,87934.0,0.85301689]
[1769413375711,0.11353178,87947.0,87934.0,0.86438905]
[1769413375922,0.11353178,87946.0,87934.0,0.86438905]
[1769413376125,0.11353178,87945.0,87934.0,0.86438905]
[1769413376347,0.11353178,87944.0,87934.0,0.86438905]
[1769413376554,0.11353178,87943.0,87934.0,0.85301689]
[1769413376763,0.11353178,87942.0,87934.0,0.86438905]
[1769413376969,0.11353178,87941.0,87934.0,0.86438905]
[1769413377184,0.11356254,87940.0,87934.0,0.86438905]
[1769413377393,0.03637707,87948.0,87934.0,0.86438905]
[1769413377584,0.11356282,87947.0,87935.0,0.02185532]
[1769413377781,0.11356282,87946.0,87935.0,0.01048329]
[1769413378020,0.11356282,87945.0,87935.0,0.01048329]
[1769413378221,0.11356282,87944.0,87935.0,0.01048329]
[1769413378394,0.11356282,87943.0,87935.0,0.01048329]
[1769413378619,0.11356282,87942.0,87935.0,0.01048329]
[1769413378837,0.11356282,87941.0,87935.0,0.01048329]
[1769413379033,0.11356282,87940.0,87935.0,0.02185532]
[1769413379260,0.11356282,87939.0,87935.0,0.01048329]
[1769413379471,0.03637707,87948.0,87935.0,0.02185532]
[1769413379673,0.11361455,87947.0,87935.0,0.01048329]
[1769413379829,0.11361455,87946.0,87935.0,0.01048329]
[1769413380035,0.11361455,87945.0,87935.0,0.01048329]
[1769413380253,0.11361455,87944.0,87935.0,0.01048329]
[1769413380456,0.11361455,87943.0,87935.0,0.01048329]
[1769413380771,0.03637707,87948.0,87935.0,0.01048329]
[1769413380772,0.11361455,87942.0,87935.0,0.01048329]
[1769413380973,0.11361455,87941.0,87930.0,0.01154268]
[1769413381171,0.11361455,87940.0,87930.0,0.01154268]
[1769413381408,0.11361455,87939.0,87930.0,0.01154268]
[1769413381585,0.36559199,87948.0,87930.0,0.01154268]
[1769413381739,0.11362384,87947.0,87930.0,0.01154268]
[1769413381949,0.46577721,87940.0,87930.0,0.01154268]
[1769413382148,0.11362384,87939.0,87930.0,0.00017]
[1769413382365,0.46577721,87940.0,87930.0,0.00017]
[1769413382545,0.11362424,87939.0,87930.0,0.00017]
[1769413382759,0.79499213,87940.0,87930.0,0.00017]
[1769413383021,0.11362424,87939.0,87930.0,0.00017]
[1769413383220,0.79499213,87940.0,87930.0,0.00017]
[1769413383476,0.11362693,87939.0,87930.0,0.00017]
[1769413383694,0.79544259,87940.0,87930.0,0.00017]
[1769413383900,0.11362676,87939.0,87930.0,0.00017]
[1769413384046,0.79544259,87940.0,87930.0,0.00017]
[1769413384244,0.11362806,87939.0,87930.0,0.00017]
[1769413384448,0.79544259,87940.0,87930.0,0.00017]
[1769413384697,0.11362891,87939.0,87930.0,0.00017]
[1769413384863,0.79544259,87940.0,87930.0,0.00017]
[1769413385181,0.11362902,87939.0,87930.0,0.00017]
[1769413385363,0.79544259,87940.0,87930.0,0.00017]
[1769413385574,0.1136309,87939.0,87930.0,0.00017]
[1769413385768,0.11363084,87938.0,87930.0,0.00017]
[1769413385976,0.79544259,87940.0,87930.0,0.00017]
[1769413386176,0.11363094,87939.0,87930.0,0.00017]
[1769413386459,0.11363094,87938.0,87930.0,0.00017]
[1769413386653,0.79544259,87940.0,87930.0,0.00017]
[1769413386896,0.11363449,87939.0,87930.0,0.00017]
[1769413387090,0.11363449,87938.0,87930.0,0.00017]
[1769413387306,0.79544259,87940.0,87930.0,0.00017]
[1769413387307,0.46622767,87940.0,87930.0,0.00017]
[1769413387513,0.11363939,87939.0,87930.0,0.00017]
[1769413387690,0.46622767,87940.0,87930.0,0.00017]
[1769413387691,0.11363939,87938.0,87930.0,0.00017]
[1769413387875,0.46622767,87940.0,87930.0,0.00017]
[1769413388090,0.11363974,87939.0,87930.0,0.01154268]
[1769413388292,0.11363974,87938.0,87931.0,0.01137255]
[1769413388527,0.46622767,87940.0,87931.0,0.01137255]
[1769413388790,0.11364618,87939.0,87931.0,0.01137255]
[1769413389036,0.11364618,87938.0,87931.0,0.01137255]
[1769413389238,0.46622767,87940.0,87930.0,0.00017]
[1769413389427,0.11365415,87939.0,87930.0,0.00017]
[1769413389642,0.11365415,87938.0,87930.0,0.00017]
[1769413389872,0.32921492,87942.0,87930.0,0.00017]
[1769413390020,0.11365369,87941.0,87930.0,0.00017]
[1769413390223,0.11365369,87940.0,87930.0,0.00017]
[1769413390433,0.11365369,87939.0,87930.0,0.00017]
[1769413390641,0.11365369,87938.0,87930.0,0.01154268]
[1769413390843,0.46622767,87940.0,87930.0,0.00017]
[1769413391040,0.11366306,87939.0,87930.0,0.01154268]
[1769413391250,0.11366306,87938.0,87930.0,0.00017]
[1769413391470,0.32921492,87942.0,87930.0,0.01154268]
[1769413391666,0.11367448,87941.0,87930.0,0.01154268]
[1769413391848,0.11367448,87940.0,87931.0,0.01137255]
[1769413392051,0.11367448,87939.0,87933.0,0.01137229]
[1769413392366,0.32921492,87942.0,87933.0,1e-08]
[1769413392545,0.11368887,87941.0,87933.0,1e-08]
[1769413392773,0.11368887,87940.0,87933.0,1e-08]
[1769413392963,0.11368887,87939.0,87933.0,1e-08]
[1769413393199,0.11370586,87938.0,87933.0,1e-08]
[1769413393403,0.32921492,87942.0,87933.0,1e-08]
[1769413393724,0.11370722,87941.0,87933.0,0.01162288]
[1769413393936,0.11370722,87940.0,87933.0,0.01162288]
[1769413394146,0.11370722,87939.0,87933.0,0.01162288]
[1769413394349,0.11370722,87938.0,87933.0,0.01162288]
[1769413394510,0.32921492,87942.0,87933.0,0.01162288]
[1769413394839,0.1137249,87941.0,87933.0,0.01162288]
[1769413394996,0.1137249,87940.0,87933.0,0.01162288]
[1769413395199,0.1137249,87939.0,87933.0,0.01162288]
[1769413395422,0.1137249,87938.0,87934.0,0.0636632]
[1769413395610,0.1137249,87937.0,87934.0,0.0636632]
[1769413395809,0.03637707,87948.0,87934.0,0.72539404]
[1769413396027,0.11375707,87947.0,87935.0,0.01162295]
[1769413396257,0.11375707,87946.0,87935.0,0.01162295]
[1769413396553,0.11375707,87945.0,87935.0,0.01162295]
[1769413396751,0.11375707,87944.0,87935.0,0.01162295]
[1769413396958,0.11375707,87943.0,87935.0,0.01162295]
[1769413397187,0.11375707,87942.0,87935.0,0.01162295]
[1769413397357,0.03637707,87948.0,87935.0,0.01162295]
[1769413397358,0.11375707,87941.0,87935.0,0.01162295]
[1769413397566,0.11375707,87940.0,87935.0,0.07238303]
[1769413397892,0.11375707,87939.0,87935.0,0.07238303]
[1769413398139,0.11375707,87938.0,87935.0,0.07238303]
[1769413398270,0.11375707,87937.0,87935.0,0.07238303]
[1769413398474,0.03637707,87948.0,87935.0,0.07238303]
[1769413398673,0.11376505,87947.0,87935.0,0.07238303]
[1769413398876,0.11376505,87946.0,87935.0,0.07238303]
[1769413399072,0.11376505,87945.0,87935.0,0.07238303]
[1769413399292,0.11376505,87944.0,87935.0,0.07238303]
[1769413399608,0.11376505,87943.0,87935.0,0.07238303]
[1769413399750,0.12549794,87942.0,87929.0,0.82351002]
[1769413399956,0.11376505,87941.0,87929.0,0.8842701]
[1769413400292,0.11376505,87940.0,87930.0,0.01194478]
[1769413400499,0.12549794,87939.0,87930.0,0.01194478]
[1769413400700,0.11376505,87938.0,87929.0,0.82740612]
[1769413400882,0.01173289,87947.0,87930.0,0.01137268]
[1769413401081,0.11376513,87946.0,87930.0,0.76664591]
[1769413401447,0.12549802,87945.0,87932.0,0.01137242]
[1769413401650,0.11376513,87944.0,87932.0,0.01137242]
[1769413401797,0.03637707,87948.0,87932.0,0.01137242]
[1769413401798,0.12549802,87943.0,87932.0,0.01137242]
[1769413402139,0.11376513,87942.0,87932.0,0.01137242]
[1769413402289,0.12549802,87941.0,87932.0,0.01137242]
[1769413402636,0.12549802,87941.0,87930.0,0.82350923]
[1769413402637,0.11376513,87940.0,87930.0,0.76664591]
[1769413402836,0.12549802,87939.0,87931.0,0.01137255]
[1769413403035,0.11376513,87938.0,87930.0,0.75527323]
[1769413403265,0.40228376,87947.0,87930.0,0.75527323]
[1769413403404,0.12549728,87946.0,87930.0,0.75527323]
[1769413403608,0.46622767,87940.0,87930.0,0.75527323]
[1769413403832,0.12549728,87939.0,87930.0,0.75527323]
[1769413404043,0.11376439,87938.0,87930.0,0.75527323]
[1769413404245,0.01173289,87939.0,87930.0,0.75527323]
[1769413404445,0.11376385,87938.0,87930.0,0.75527323]
[1769413404645,0.01173289,87939.0,87930.0,0.75527323]
[1769413404814,0.01173289,87939.0,87925.0,0.01137332]
[1769413404815,0.11376366,87938.0,87925.0,0.82351307]
[1769413405015,0.11376366,87937.0,87925.0,0.82351307]
[1769413405214,0.01173289,87939.0,87927.0,0.01137307]
[1769413405534,0.11376356,87938.0,87929.0,0.01137281]
[1769413405744,0.11376356,87937.0,87930.0,0.01137268]
[1769413406045,0.01173289,87939.0,87929.0,0.01137281]
[1769413406268,0.11376444,87938.0,87929.0,0.01137281]
[1769413406592,0.01173289,87939.0,87928.0,0.01137294]
[1769413406793,0.11376447,87938.0,87928.0,0.01137294]
[1769413406966,0.01173289,87939.0,87928.0,0.01137294]
[1769413407168,0.11376447,87938.0,87927.0,0.01137307]
[1769413407369,0.01173289,87939.0,87926.0,0.81603331]
[1769413407566,0.11376456,87938.0,87926.0,0.82740651]
[1769413407768,0.01173289,87939.0,87928.0,0.01137294]
[1769413408006,0.11376472,87938.0,87928.0,0.01137294]
[1769413408170,0.01173289,87939.0,87928.0,0.01137294]
[1769413408374,0.11376526,87938.0,87928.0,0.01137294]
[1769413408580,0.01173289,87939.0,87929.0,0.01137281]
[1769413408777,0.11376531,87938.0,87928.0,0.01137294]
[1769413408984,0.01173289,87939.0,87929.0,0.01137281]
[1769413409186,0.11376439,87938.0,87929.0,0.01137281]
[1769413409386,0.01173289,87939.0,87929.0,0.01137281]
[1769413409590,0.11376547,87938.0,87928.0,0.01137294]
[1769413409790,0.11376569,87937.0,87929.0,0.01137281]
[1769413410049,0.11376569,87936.0,87929.0,0.01137281]
[1769413410393,0.01173289,87942.0,87933.0,0.01137229]
[1769413410601,0.06133595,87946.0,87933.0,0.01137229]
[1769413410602,0.12549913,87941.0,87933.0,0.01137229]
[1769413410825,0.11376624,87940.0,87933.0,0.01137229]
[1769413411047,0.12549913,87939.0,87933.0,0.01137229]
[1769413411186,0.11376624,87938.0,87933.0,0.01137229]
[1769413411389,0.11376624,87937.0,87933.0,0.01137229]
[1769413411582,0.01173289,87944.0,87933.0,0.01137229]
[1769413411809,0.11376683,87943.0,87931.0,0.01137255]
[1769413412006,0.12549972,87942.0,87932.0,0.01137242]
[1769413412210,0.11376683,87941.0,87933.0,0.01137229]
[1769413412386,0.12549972,87940.0,87933.0,0.01137229]
[1769413412601,0.11376683,87939.0,87933.0,0.01137229]
[1769413412888,0.11376683,87938.0,87933.0,0.01137229]
[1769413413108,0.11376683,87937.0,87933.0,0.01137229]
[1769413413323,0.01173289,87944.0,87933.0,0.01137229]
[1769413413626,0.11376743,87943.0,87933.0,0.01137229]
[1769413413859,0.12550032,87942.0,87933.0,0.01137229]
[1769413414064,0.11376743,87941.0,87933.0,0.01137229]
[1769413414267,0.12550032,87940.0,87933.0,0.01137229]
[1769413414468,0.11376743,87939.0,87933.0,0.01137229]
[1769413414698,0.11376743,87938.0,87933.0,0.01137229]
[1769413414914,0.11376743,87937.0,87933.0,0.01137229]
[1769413415092,0.01173289,87944.0,87931.0,0.01137255]
[1769413415294,0.11377212,87943.0,87932.0,0.01137242]
[1769413415509,0.12550501,87942.0,87931.0,0.01137255]
[1769413415730,0.11377212,87941.0,87932.0,0.01137242]
[1769413416046,0.12550501,87940.0,87928.0,0.02337294]
[1769413416335,0.12550501,87940.0,87928.0,0.012]
[1769413416336,0.11377212,87939.0,87928.0,0.012]
[1769413416497,0.12550501,87938.0,87928.0,0.012]
[1769413416700,0.11377212,87937.0,87928.0,0.012]
[1769413416922,0.46622767,87940.0,87928.0,0.012]